bitfinex/quotes_SOLUSD_20241024
["timestamp","ask_amount","ask_price","bid_price","bid_amount"]
[1729730224263,23.63835614,171.04,170.99,23.63835614]
[1729730224464,23.63835614,171.04,171.0,1.46310611]
[1729730224773,23.63835614,171.07,171.02,23.63835614]
[1729730225154,23.63835614,171.07,171.03,11.81917807]
[1729730225350,23.63835614,171.08,171.04,23.63835614]
[1729730225571,15.935,171.09,171.05,23.63835614]
[1729730225776,39.57335614,171.09,171.04,23.63835614]
[1729730226655,23.63835614,171.08,171.03,23.63835614]
[1729730226864,23.63835614,171.07,171.03,23.63835614]
[1729730228357,23.63835614,171.08,171.03,23.63835614]
[1729730228557,23.63835614,171.04,170.95,12.93303746]
[1729730228770,23.63835614,171.04,171.0,23.63835614]
[1729730228956,23.63835614,171.04,171.01,1.46314826]
[1729730229149,23.63835614,171.04,171.0,23.63835614]
[1729730229349,23.63835614,171.04,171.01,1.46316869]
[1729730229560,23.63835614,171.04,170.99,23.63835614]
[1729730229776,23.63835614,171.03,171.0,1.463219]
[1729730230083,23.63835614,171.03,170.98,23.63835614]
[1729730230267,23.63835614,171.03,170.99,1.46321551]
[1729730230451,23.63835614,171.03,171.0,1.46321551]
[1729730230655,23.63835614,171.03,170.98,23.63835614]
[1729730230855,23.63835614,171.03,170.99,1.46321862]
[1729730231052,23.63835614,171.03,171.0,1.46321862]
[1729730231268,23.63835614,171.03,170.98,23.63835614]
[1729730231468,23.63835614,171.03,170.99,1.46322558]
[1729730231685,23.63835614,171.03,171.0,1.46322558]
[1729730231872,23.63835614,171.03,170.98,23.63835614]
[1729730232181,23.63835614,171.03,170.99,1.46322403]
[1729730232476,23.63835614,171.03,171.0,1.46322403]
[1729730232680,23.63835614,171.03,170.98,23.63835614]
[1729730232884,23.63835614,171.03,170.99,1.46321707]
[1729730233076,23.63835614,171.03,171.0,1.46321707]
[1729730233263,23.63835614,171.03,170.98,23.63835614]
[1729730233463,23.63835614,171.03,170.99,1.4632167]
[1729730233659,23.63835614,171.03,171.0,1.4632167]
[1729730233853,23.63835614,171.03,170.98,23.63835614]
[1729730234079,23.63835614,171.03,170.99,1.46322403]
[1729730234259,29.48495614,171.04,171.0,1.46322403]
[1729730234453,29.48495614,171.04,170.99,23.63835614]
[1729730234657,29.48495614,171.04,171.0,1.46322348]
[1729730234858,29.48495614,171.04,170.99,23.63835614]
[1729730235055,23.63835614,171.03,171.0,1.46322366]
[1729730235284,23.63835614,171.03,170.98,23.63835614]
[1729730235462,23.63835614,171.03,170.99,1.46322366]
[1729730235662,23.63835614,171.03,171.0,1.46322366]
[1729730235859,49.747574,171.08,171.01,23.63835614]
[1729730236089,23.63835614,171.06,171.01,23.63835614]
[1729730236377,23.63835614,171.04,171.0,23.63835614]
[1729730236576,23.63835614,171.04,171.01,1.4631539]
[1729730236881,23.63835614,171.04,171.0,23.63835614]
[1729730237068,23.63835614,171.04,171.01,1.46313999]
[1729730237268,23.63835614,171.04,171.0,23.63835614]
[1729730237470,23.63835614,171.04,171.01,1.46313981]
[1729730237683,23.63835614,171.04,171.0,23.63835614]
[1729730237882,23.63835614,171.04,171.01,1.46313981]
[1729730238082,5.8462,171.05,171.0,23.63835614]
[1729730238267,5.8462,171.05,171.01,23.63835614]
[1729730238466,29.48455614,171.05,171.0,23.63835614]
[1729730239166,23.63835614,171.04,170.99,23.63835614]
[1729730239367,29.48455614,171.05,171.0,25.1015516]
[1729730239672,29.48365614,171.08,171.04,23.63835614]
[1729730239983,29.48365614,171.08,171.03,23.63835614]
[1729730240160,23.63835614,171.07,171.02,23.63835614]
[1729730240563,23.63835614,171.07,171.03,1.46300979]
[1729730240763,29.48365614,171.08,171.03,23.63835614]
[1729730240980,23.63835614,171.08,171.04,23.63835614]
[1729730244088,29.48355614,171.08,171.04,23.63835614]
[1729730245777,29.48355614,171.08,171.03,23.63835614]
[1729730247484,23.63835614,171.07,171.03,23.63835614]
[1729730247698,23.63835614,171.07,171.04,1.46294821]
[1729730247900,23.63835614,171.07,171.02,23.63835614]
[1729730248595,23.63835614,171.07,171.03,1.46294802]
[1729730249090,23.63835614,171.07,171.04,1.46294802]
[1729730249296,29.48355614,171.08,171.04,1.46294802]
[1729730249776,23.63835614,171.07,171.04,1.46294802]
[1729730250186,23.63835614,171.07,171.03,23.63835614]
[1729730252795,5.8452,171.08,171.03,23.63835614]
[1729730252983,29.48355614,171.08,171.03,23.63835614]
[1729730254499,23.63835614,171.07,171.02,23.63835614]
[1729730254795,23.63835614,171.03,170.97,23.63835614]
[1729730254997,23.63835614,171.02,170.98,1.46319289]
[1729730255194,23.63835614,171.02,170.99,1.46319289]
[1729730255388,23.63835614,171.02,171.0,1.46319289]
[1729730255586,23.63835614,171.02,170.97,23.63835614]
[1729730255788,23.63835614,171.02,170.98,1.46321195]
[1729730256088,23.63835614,171.02,170.99,1.46321195]
[1729730256292,23.63835614,171.02,171.0,1.46321195]
[1729730256495,23.63835614,171.02,170.97,23.63835614]
[1729730256792,23.63835614,171.02,170.98,1.46321206]
[1729730256975,23.63835614,171.02,170.99,1.46321206]
[1729730257170,23.63835614,171.02,171.0,1.46321206]
[1729730257377,23.63835614,171.02,170.97,23.63835614]
[1729730257695,23.63835614,171.02,170.98,25.10155182]
[1729730257886,23.63835614,171.02,170.99,1.46319568]
[1729730258091,23.63835614,171.02,171.0,1.46319568]
[1729730258394,23.63835614,171.03,170.98,23.63835614]
[1729730258702,23.63835614,171.03,170.99,1.46319631]
[1729730258892,23.63835614,171.03,171.0,1.46319631]
[1729730259100,23.63835614,171.03,170.98,23.63835614]
[1729730259277,23.63835614,171.03,170.99,1.46318239]
[1729730259477,23.63835614,171.03,171.0,1.46318239]
[1729730259679,23.63835614,171.03,170.98,23.63835614]
[1729730259881,23.63835614,171.03,170.99,1.46319594]
[1729730260095,23.63835614,171.03,171.0,1.46319594]
[1729730260295,23.63835614,171.03,170.98,23.63835614]
[1729730260495,23.63835614,171.03,170.99,1.46319631]
[1729730260701,23.63835614,171.03,171.0,1.46319631]
[1729730260905,23.63835614,171.03,170.98,23.63835614]
[1729730261204,23.63835614,171.03,170.99,1.46319631]
[1729730261409,23.63835614,171.03,171.0,1.46319631]
[1729730261599,23.63835614,171.03,170.98,23.63835614]
[1729730261779,23.63835614,171.03,170.99,1.46320722]
[1729730262101,23.63835614,171.03,171.0,1.46320722]
[1729730262295,23.63835614,171.03,170.98,23.63835614]
[1729730262490,23.63835614,171.03,170.99,1.46320874]
[1729730262696,23.63835614,171.03,171.0,1.46320874]
[1729730262994,23.63835614,171.03,170.98,23.63835614]
[1729730263201,23.63835614,171.03,170.99,25.10153705]
[1729730263382,23.63835614,171.03,171.0,1.46318091]
[1729730263704,23.63835614,171.03,170.99,23.63835614]
[1729730263890,23.63835614,171.03,171.0,1.46318055]
[1729730264099,23.63835614,171.03,170.99,23.63835614]
[1729730264302,23.63835614,171.03,171.0,1.46317377]
[1729730264502,23.63835614,171.03,170.99,23.63835614]
[1729730264710,23.63835614,171.03,171.0,1.46317377]
[1729730264883,23.63835614,171.03,170.99,23.63835614]
[1729730265085,23.63835614,171.03,171.0,1.46317377]
[1729730265296,23.63835614,171.03,170.99,23.63835614]
[1729730265486,23.63835614,171.0,170.95,29.9394936]
[1729730265689,23.63835614,171.0,170.96,1.46326751]
[1729730265906,23.63835614,171.01,170.97,1.46326751]
[1729730266095,23.63835614,171.01,170.98,1.46326751]
[1729730266307,23.63835614,171.01,170.99,1.46326751]
[1729730266601,23.63835614,171.01,170.96,23.63835614]
[1729730266801,23.63835614,171.01,170.97,1.46331444]
[1729730266994,23.63835614,171.01,170.98,1.46331444]
[1729730267194,23.63835614,171.01,170.96,23.63835614]
[1729730267395,23.63835614,171.01,170.97,1.46333091]
[1729730267597,23.63835614,171.01,170.98,1.46333091]
[1729730267809,23.63835614,171.01,170.96,23.63835614]
[1729730268111,23.63835614,171.02,170.97,25.10170229]
[1729730268313,23.63835614,171.02,170.98,1.46334615]
[1729730268612,23.63835614,171.02,170.97,23.63835614]
[1729730268808,23.63835614,171.02,170.98,1.46334579]
[1729730268990,23.63835614,171.02,170.97,23.63835614]
[1729730269290,23.63835614,171.02,170.98,1.46334579]
[1729730269587,23.63835614,171.02,170.97,23.63835614]
[1729730269913,22.2585,171.03,170.98,1.46334579]
[1729730270114,23.63835614,171.02,170.97,23.63835614]
[1729730270416,23.63835614,171.02,170.98,1.46334429]
[1729730270598,23.63835614,171.02,170.97,23.63835614]
[1729730270792,23.63835614,171.02,170.98,1.46334561]
[1729730270994,23.63835614,171.02,170.97,23.63835614]
[1729730271292,23.63835614,171.02,170.98,1.46334561]
[1729730271497,23.63835614,171.02,170.97,23.63835614]
[1729730271695,23.63835614,171.02,170.98,1.46334593]
[1729730272014,23.63835614,171.02,170.95,6.30113746]
[1729730272214,23.63835614,171.01,170.96,25.10182105]
[1729730272407,23.63835614,171.01,170.97,1.46346491]
[1729730272708,23.63835614,171.01,170.98,1.46346491]
[1729730272912,23.63835614,171.01,170.97,23.63835614]
[1729730273113,23.63835614,171.01,170.98,1.46340168]
[1729730273412,23.63835614,171.01,170.97,23.63835614]
[1729730273611,23.63835614,171.01,170.98,1.46340186]
[1729730273790,23.63835614,171.01,170.97,23.63835614]
[1729730273990,23.63835614,171.01,170.98,1.46339489]
[1729730274191,23.63835614,171.01,170.97,23.63835614]
[1729730274494,23.63835614,171.01,170.98,1.46342349]
[1729730274695,23.63835614,171.01,170.97,23.63835614]
[1729730274900,23.63835614,171.01,170.98,1.46342366]
[1729730275089,23.63835614,170.99,170.95,6.30113746]
[1729730275294,23.63835614,170.99,170.96,1.46351527]
[1729730275513,23.63835614,170.99,170.97,1.46351527]
[1729730275710,47.41524014,171.0,170.95,29.9394936]
[1729730275914,47.41524014,171.0,170.96,1.46351577]
[1729730276105,47.41524014,171.0,170.95,29.9394936]
[1729730276307,47.41524014,171.0,170.96,1.46354402]
[1729730276517,47.41524014,171.0,170.95,29.9394936]
[1729730276822,47.41524014,171.0,170.96,1.46354229]
[1729730277004,47.41524014,171.0,170.95,29.9394936]
[1729730277316,47.41524014,171.0,170.96,1.46354258]
[1729730277531,47.41524014,171.0,170.95,29.9394936]
[1729730277694,47.41524014,171.0,170.96,1.46354402]
[1729730277989,47.41524014,171.0,170.95,29.9394936]
[1729730278196,47.41524014,171.0,170.96,1.4635299]
[1729730278496,23.63835614,170.99,170.95,6.30113746]
[1729730278694,23.63835614,170.99,170.96,1.46353026]
[1729730278899,23.63835614,170.99,170.95,6.30113746]
[1729730279314,23.63835614,170.99,170.96,1.46354476]
[1729730279496,23.63835614,170.99,170.95,6.30113746]
[1729730279714,23.63835614,170.98,170.96,1.46354458]
[1729730280008,23.63835614,170.97,170.95,6.30113746]
[1729730281803,23.63835614,170.98,170.95,6.30113746]
[1729730285703,23.63835614,170.98,170.91,6.5216]
[1729730285906,23.63835614,170.99,170.94,23.63835614]
[1729730286110,23.63835614,170.99,170.95,1.46359856]
[1729730286305,23.63835614,170.99,170.94,23.63835614]
[1729730286509,23.63835614,170.99,170.95,1.4635966]
[1729730286711,23.63835614,170.99,170.94,23.63835614]
[1729730286923,23.63835614,170.99,170.95,1.46359777]
[1729730287127,23.63835614,170.99,170.94,23.63835614]
[1729730287432,23.63835614,170.99,170.95,1.46359796]
[1729730287612,23.63835614,170.99,170.94,23.63835614]
[1729730287807,23.63835614,170.99,170.95,1.46359796]
[1729730288009,23.63835614,170.99,170.94,23.63835614]
[1729730288305,23.63835614,170.99,170.95,1.46359777]
[1729730288501,23.63835614,170.99,170.94,23.63835614]
[1729730288734,23.63835614,170.99,170.95,1.46359796]
[1729730288908,23.63835614,170.99,170.94,23.63835614]
[1729730289115,23.63835614,170.99,170.91,6.5216]
[1729730289422,23.63835614,170.99,170.94,23.63835614]
[1729730290528,23.63835614,170.99,170.91,6.5216]
[1729730290729,23.63835614,170.99,170.94,23.63835614]
[1729730297432,23.776884,171.0,170.96,23.63835614]
[1729730297638,16.4113,171.03,170.99,23.63835614]
[1729730298512,22.2582,171.03,170.99,23.63835614]
[1729730299922,45.89655614,171.03,170.99,23.63835614]
[1729730300432,45.89655614,171.03,170.91,101.07502456]
[1729730300433,45.89655614,171.03,170.98,23.63835614]
[1729730300741,23.63835614,171.02,170.98,23.63835614]
[1729730301727,23.63835614,171.02,170.97,23.63835614]
[1729730303020,23.63835614,170.99,170.94,23.63835614]
[1729730303225,23.63835614,170.99,170.95,1.46349036]
[1729730303425,23.63835614,170.99,170.94,23.63835614]
[1729730303636,23.63835614,170.99,170.95,23.63835614]
[1729730305122,23.63835614,170.99,170.96,1.46349324]
[1729730305323,23.63835614,171.0,170.95,23.63835614]
[1729730305527,23.63835614,171.0,170.96,1.46349306]
[1729730305724,23.63835614,171.0,170.95,23.63835614]
[1729730306045,23.63835614,171.0,170.96,1.46349202]
[1729730306246,23.63835614,171.0,170.95,23.63835614]
[1729730306464,23.63835614,171.0,170.96,1.46350003]
[1729730306647,23.63835614,171.0,170.95,23.63835614]
[1729730306849,23.63835614,171.0,170.96,1.46349848]
[1729730307143,23.63835614,171.0,170.95,23.63835614]
[1729730307346,23.63835614,171.0,170.96,1.46349698]
[1729730307651,23.63835614,171.0,170.95,23.63835614]
[1729730307821,23.63835614,171.0,170.96,1.46349866]
[1729730308025,23.63835614,171.0,170.95,23.63835614]
[1729730308227,23.63835614,171.0,170.96,1.46349829]
[1729730308429,23.63835614,171.0,170.95,23.63835614]
[1729730308753,23.63835614,171.0,170.96,1.46348527]
[1729730308922,45.89675614,171.03,170.98,23.63835614]
[1729730309125,16.4113,171.03,170.99,23.63835614]
[1729730309926,40.04965614,171.03,170.99,23.63835614]
[1729730310850,40.04965614,171.03,170.98,23.63835614]
[1729730312639,60.142664,171.08,171.01,23.63835614]
[1729730312829,45.736884,171.08,171.02,23.63835614]
[1729730313155,23.63835614,171.07,171.03,23.63835614]
[1729730313969,16.1148,171.08,171.04,23.63835614]
[1729730315749,16.1148,171.08,171.05,23.63835614]
[1729730317756,45.59835614,171.08,171.04,23.63835614]
[1729730318136,45.59835614,171.08,171.03,23.63835614]
[1729730322033,23.63835614,171.07,170.97,6.0212]
[1729730322237,23.63835614,171.05,171.0,23.63835614]
[1729730322544,23.63835614,171.05,171.01,1.46304869]
[1729730322842,23.63835614,171.05,171.02,1.46304869]
[1729730323044,23.63835614,171.05,171.0,23.63835614]
[1729730323045,23.63835614,171.05,171.01,23.63835614]
[1729730323245,29.48425614,171.06,171.02,1.46304869]
[1729730323452,29.48425614,171.06,171.02,23.63835614]
[1729730323766,5.8459,171.06,171.02,23.63835614]
[1729730328558,23.776884,171.05,170.97,6.0212]
[1729730328736,23.776884,171.05,170.95,8.28552922]
[1729730328737,23.63835614,171.03,170.98,25.10154901]
[1729730329051,23.63835614,171.03,170.99,1.46319287]
[1729730329358,23.63835614,171.03,170.98,23.63835614]
[1729730329969,29.48495614,171.04,170.99,23.63835614]
[1729730331064,29.48495614,171.04,170.95,8.28552922]
[1729730331256,29.48495614,171.04,170.99,23.63835614]
[1729730331648,29.48495614,171.04,171.0,23.63835614]
[1729730333359,5.8466,171.04,171.01,23.63835614]
[1729730335053,23.776884,171.05,171.01,23.63835614]
[1729730335251,29.623184,171.05,171.01,23.63835614]
[1729730336556,5.8458,171.07,171.02,23.63835614]
[1729730336755,5.8458,171.07,171.03,23.63835614]
[1729730337655,29.48415614,171.07,171.03,23.63835614]
[1729730338042,29.48415614,171.07,171.02,23.63835614]
[1729730340049,29.48415614,171.07,170.95,8.28552922]
[1729730340050,29.48415614,171.07,171.03,23.63835614]
[1729730340743,29.48415614,171.07,171.02,23.63835614]
[1729730341155,29.48415614,171.07,170.95,8.28552922]
[1729730341156,5.8458,171.07,171.03,23.63835614]
[1729730341355,5.8458,171.07,171.04,23.63835614]
[1729730344167,5.8458,171.07,171.03,23.63835614]
[1729730344462,29.48415614,171.07,171.03,23.63835614]
[1729730345561,23.63835614,171.05,171.0,23.63835614]
[1729730346470,29.48465614,171.05,171.0,23.63835614]
[1729730347566,23.63835614,171.04,171.0,23.63835614]
[1729730348667,23.63835614,171.05,171.0,23.63835614]
[1729730350167,23.63835614,171.04,170.99,23.63835614]
[1729730353550,23.63835614,171.04,171.0,1.46324364]
[1729730353763,23.63835614,171.04,170.99,23.63835614]
[1729730353963,23.63835614,171.04,171.0,1.46321992]
[1729730354166,23.63835614,171.04,170.99,23.63835614]
[1729730354371,23.63835614,171.04,171.0,1.46322582]
[1729730354676,23.63835614,171.04,170.99,23.63835614]
[1729730354846,23.63835614,171.04,171.0,1.46321875]
[1729730355047,23.63835614,171.04,170.99,23.63835614]
[1729730355251,23.63835614,171.04,171.0,1.46323268]
[1729730355453,23.63835614,171.04,170.99,23.63835614]
[1729730355675,23.63835614,171.04,171.0,1.46323286]
[1729730355971,23.63835614,171.04,170.99,23.63835614]
[1729730356273,23.63835614,171.04,171.0,1.46323286]
[1729730356462,23.63835614,171.04,170.99,23.63835614]
[1729730356659,23.63835614,171.04,171.0,1.46323127]
[1729730356862,23.63835614,171.04,170.99,23.63835614]
[1729730357059,23.63835614,171.04,171.0,1.46321734]
[1729730357263,23.63835614,171.04,170.99,23.63835614]
[1729730357446,29.48475614,171.05,171.0,25.10157489]
[1729730357647,29.48475614,171.05,171.0,23.63835614]
[1729730358359,23.63835614,171.03,170.95,8.28552922]
[1729730358566,23.63835614,171.01,170.96,25.10161778]
[1729730358871,5.8464,171.05,170.97,1.46326164]
[1729730358872,23.63835614,171.0,170.97,1.46326164]
[1729730359063,23.63835614,171.0,170.95,23.63835614]
[1729730359261,23.63835614,171.0,170.96,1.4634647]
[1729730359460,23.63835614,171.0,170.97,1.4634647]
[1729730359664,23.63835614,171.0,170.95,23.63835614]
[1729730359978,23.63835614,171.0,170.96,1.4634674]
[1729730360174,23.63835614,171.0,170.97,1.4634674]
[1729730360372,23.63835614,171.0,170.95,23.63835614]
[1729730360674,23.63835614,171.0,170.96,1.4634674]
[1729730360869,23.63835614,171.0,170.97,1.4634674]
[1729730361176,23.63835614,171.0,170.98,1.46345686]
[1729730361368,23.63835614,171.0,170.95,23.63835614]
[1729730361668,23.63835614,171.0,170.96,1.46345602]
[1729730361874,23.63835614,171.0,170.97,1.46345659]
[1729730362060,23.63835614,171.0,170.98,1.46345659]
[1729730362260,23.63835614,171.0,170.95,23.63835614]
[1729730362473,23.63835614,171.0,170.96,1.46345803]
[1729730362768,23.63835614,171.0,170.97,1.46345803]
[1729730362956,23.63835614,171.0,170.95,23.63835614]
[1729730363159,23.63835614,171.0,170.96,25.10181225]
[1729730363357,23.63835614,171.0,170.97,1.46345611]
[1729730363557,23.63835614,171.0,170.96,23.63835614]
[1729730363765,23.63835614,171.0,170.97,1.46345611]
[1729730363964,23.63835614,171.0,170.96,23.63835614]
[1729730364171,23.63835614,171.0,170.97,1.46346095]
[1729730364365,23.63835614,171.0,170.96,23.63835614]
[1729730364560,23.63835614,171.0,170.97,1.46346095]
[1729730364764,23.63835614,171.0,170.98,1.46345611]
[1729730364965,23.63835614,171.01,170.97,23.63835614]
[1729730365461,23.63835614,171.01,170.98,1.46345593]
[1729730365664,23.63835614,171.01,170.97,23.63835614]
[1729730365967,29.935184,171.06,171.0,23.63835614]
[1729730365968,23.776884,171.04,171.0,23.63835614]
[1729730366182,6.0583,171.06,170.91,94.55342456]
[1729730366183,23.63835614,171.06,171.01,23.63835614]
[1729730367068,5.846,171.06,171.02,23.63835614]
[1729730367381,21.96,171.08,171.05,23.63835614]
[1729730367886,23.63835614,171.06,171.01,23.63835614]
[1729730368070,23.63835614,171.06,171.02,1.46313748]
[1729730368272,23.63835614,171.06,171.01,23.63835614]
[1729730368471,23.63835614,171.05,171.01,23.63835614]
[1729730368983,29.48425614,171.06,171.01,23.63835614]
[1729730369762,23.63835614,171.05,171.01,23.63835614]
[1729730369965,23.63835614,171.05,171.0,23.63835614]
[1729730370278,23.63835614,171.04,171.01,1.46317341]
[1729730370481,29.48505614,171.04,170.99,23.63835614]
[1729730370668,29.48505614,171.04,171.0,1.46318508]
[1729730370878,29.48505614,171.04,171.01,1.46318508]
[1729730371067,29.48505614,171.04,170.99,23.63835614]
[1729730371257,29.48505614,171.04,171.0,1.46319333]
[1729730371457,29.48505614,171.04,171.01,1.46319333]
[1729730371660,29.48505614,171.04,170.99,23.63835614]
[1729730371881,29.48505614,171.04,171.0,1.46319297]
[1729730372091,23.63835614,171.03,171.01,1.46319297]
[1729730372383,23.63835614,171.03,170.99,23.63835614]
[1729730372576,23.63835614,171.03,171.0,1.46319351]
[1729730372779,23.63835614,171.02,171.01,1.46319351]
[1729730373085,23.63835614,171.02,170.96,23.63835614]
[1729730373383,23.63835614,171.02,170.97,1.46336994]
[1729730373577,23.63835614,171.02,170.98,1.46336994]
[1729730373775,23.63835614,171.0,170.99,1.46336994]
[1729730373998,23.63835614,171.0,170.95,23.63835614]
[1729730374175,23.63835614,171.0,170.96,1.46346733]
[1729730374492,23.63835614,171.01,170.96,23.63835614]
[1729730374780,45.91815614,171.02,170.97,23.63835614]
[1729730374985,45.91815614,171.02,170.98,1.46342824]
[1729730375290,45.91815614,171.02,170.97,23.63835614]
[1729730375464,45.91815614,171.02,170.98,1.46342787]
[1729730375666,29.48585614,171.02,170.97,23.63835614]
[1729730375861,29.48585614,171.02,170.98,1.46342787]
[1729730376081,29.48585614,171.02,170.97,23.63835614]
[1729730376283,29.48585614,171.02,170.98,1.46344181]
[1729730376483,29.48585614,171.02,170.97,23.63835614]
[1729730376786,29.48585614,171.02,170.98,1.46344181]
[1729730376981,29.48585614,171.02,170.97,23.63835614]
[1729730377289,29.48585614,171.02,170.98,1.46342815]
[1729730377468,29.48585614,171.02,170.97,23.63835614]
[1729730377670,29.48585614,171.02,170.98,1.46342797]
[1729730377871,23.63835614,171.01,170.96,23.63835614]
[1729730378174,23.63835614,171.01,170.97,1.46347369]
[1729730378371,23.63835614,171.01,170.96,23.63835614]
[1729730378589,23.63835614,171.01,170.97,1.46347714]
[1729730378778,23.63835614,171.01,170.98,6.19]
[1729730379092,29.48615614,171.01,170.98,6.19]
[1729730379292,5.8478,171.01,170.98,6.19]
[1729730379987,20.0,171.04,171.0,23.63835614]
[1729730380286,53.26144014,171.05,170.98,6.19]
[1729730380287,29.623084,171.05,171.01,23.63835614]
[1729730380483,29.623084,171.05,171.01,29.82835614]
[1729730383266,29.623084,171.05,171.0,23.63835614]
[1729730383473,23.63835614,171.02,170.93,21.8755]
[1729730383672,23.63835614,171.02,170.97,23.63835614]
[1729730383873,23.63835614,171.02,170.98,1.46337447]
[1729730384091,23.63835614,171.02,170.99,1.46337664]
[1729730384296,23.63835614,171.02,170.97,23.63835614]
[1729730384593,29.48565614,171.02,170.98,7.65337528]
[1729730384796,29.48565614,171.02,170.99,1.46337528]
[1729730385093,23.63835614,171.01,170.98,6.19]
[1729730385791,23.63835614,171.01,170.96,23.63835614]
[1729730386099,23.63835614,171.01,170.97,1.46341723]
[1729730386388,29.48595614,171.01,170.98,1.46341723]
[1729730386592,29.48595614,171.01,170.93,21.8755]
[1729730386593,23.63835614,171.0,170.95,23.63835614]
[1729730386782,23.63835614,171.0,170.96,1.46345585]
[1729730386973,23.63835614,170.99,170.97,1.46345585]
[1729730387174,23.63835614,170.99,170.98,1.46345585]
[1729730387495,23.63835614,171.0,170.95,23.63835614]
[1729730387690,29.48635614,171.0,170.98,1.46346709]
[1729730387895,29.48635614,171.0,170.95,23.63835614]
[1729730388079,29.48635614,171.0,170.96,1.46346954]
[1729730388279,29.48635614,171.0,170.97,1.46346954]
[1729730388483,29.48635614,171.0,170.98,1.46346954]
[1729730388684,29.48635614,171.0,170.95,23.63835614]
[1729730388882,5.8465,171.04,170.99,23.63835614]
[1729730389082,5.8465,171.04,171.01,23.63835614]
[1729730389984,23.776884,171.05,171.01,23.63835614]
[1729730390290,29.623084,171.05,171.01,23.63835614]
[1729730391295,23.63835614,171.07,171.03,23.63835614]
[1729730392594,22.2772,171.09,171.06,23.63835614]
[1729730392812,5.8449,171.09,171.06,23.63835614]
[1729730393006,6.19334496,171.12,171.06,23.63835614]
[1729730393208,16.1635,171.13,171.08,23.63835614]
[1729730393389,23.63835614,171.12,171.07,23.63835614]
[1729730393589,23.63835614,171.11,171.06,23.63835614]
[1729730393794,23.63835614,171.09,170.99,21.8755]
[1729730393988,23.63835614,171.08,171.03,23.63835614]
[1729730394389,24.027864,171.12,171.01,6.19]
[1729730394592,29.48345614,171.09,171.04,23.63835614]
[1729730395205,23.63835614,171.08,171.03,23.63835614]
[1729730395388,23.63835614,171.07,171.02,23.63835614]
[1729730395688,23.63835614,171.07,171.03,1.4630381]
[1729730396009,23.63835614,171.08,171.03,23.63835614]
[1729730397314,29.48365614,171.08,171.03,23.63835614]
[1729730400801,24.027864,171.12,171.06,23.63835614]
[1729730400802,23.902374,171.12,171.06,23.63835614]
[1729730401104,43.63835614,171.12,171.07,23.63835614]
[1729730401312,54.41055614,171.13,171.08,23.63835614]
[1729730401720,5.8438,171.12,171.08,23.63835614]
[1729730401891,23.63835614,171.16,171.11,23.63835614]
[1729730402094,54.40775614,171.17,171.12,23.63835614]
[1729730402795,23.63835614,171.16,171.11,23.63835614]
[1729730403017,29.48075614,171.16,171.11,23.63835614]
[1729730403315,23.776884,171.15,171.11,23.63835614]
[1729730403513,23.776884,171.15,171.12,23.63835614]
[1729730403812,23.776884,171.15,171.11,23.63835614]
[1729730404032,23.776884,171.15,171.06,15.9796]
[1729730404033,5.8407,171.21,171.12,6.18]
[1729730404213,23.63835614,171.2,171.15,23.63835614]
[1729730404993,29.47965614,171.2,171.15,23.63835614]
[1729730405188,5.8407,171.22,171.19,23.63835614]
[1729730405393,6.4516547,171.24,171.2,23.63835614]
[1729730405820,6.4516547,171.24,171.13,22.3631]
[1729730405821,23.63835614,171.23,171.18,23.63835614]
[1729730406620,29.47845614,171.23,171.18,23.63835614]
[1729730407414,5.8401,171.23,171.18,23.63835614]
[1729730408409,5.8401,171.23,171.19,23.63835614]
[1729730409132,29.47845614,171.23,171.17,23.63835614]
[1729730410126,29.47845614,171.23,171.18,23.63835614]
[1729730411221,5.8401,171.23,171.19,23.63835614]
[1729730412127,29.47845614,171.23,171.18,23.63835614]
[1729730414720,5.8401,171.23,171.19,23.63835614]
[1729730415729,0.6116547,171.24,171.22,23.63835614]
[1729730416022,0.6116547,171.24,171.23,23.63835614]
[1729730416404,0.6116547,171.24,171.22,23.63835614]
[1729730418503,0.6116547,171.24,171.23,23.63835614]
[1729730421524,0.6116547,171.24,171.16,0.3]
[1729730421829,0.6116547,171.24,171.22,23.63835614]
[1729730424227,0.6116547,171.24,171.23,23.63835614]
[1729730425427,0.6116547,171.24,171.23,29.81835614]
[1729730426737,0.6116547,171.24,171.23,23.63835614]
[1729730427913,0.6116547,171.24,171.21,0.12549]
[1729730428106,0.6116547,171.24,171.23,23.63835614]
[1729730429827,0.6116547,171.24,171.23,29.81835614]
[1729730430337,30.08971084,171.24,171.23,6.18]
[1729730430517,30.08971084,171.24,171.19,23.63835614]
[1729730430717,24.25001084,171.24,171.2,6.18]
[1729730430932,0.6116547,171.24,171.22,23.63835614]
[1729730431535,0.6116547,171.24,171.23,23.63835614]
[1729730433820,0.6116547,171.24,171.23,23.76384614]
[1729730434218,0.6116547,171.24,171.23,0.12549]
[1729730434423,0.6116547,171.24,171.19,23.902374]
[1729730434626,0.6116547,171.24,171.23,36.84424834]
[1729730437723,0.6116547,171.24,171.2,36.84424834]
[1729730438218,0.6116547,171.24,171.22,36.84424834]
[1729730438424,0.6116547,171.24,171.23,36.84424834]
[1729730441943,0.6116547,171.24,171.22,36.84424834]